bitfinex/quotes_BTCUSD_20250525
["timestamp","ask_amount","ask_price","bid_price","bid_amount"]
[1748175759479,0.0164,107200.0,107180.0,0.33612]
[1748175759680,0.0328,107200.0,107180.0,0.33612]
[1748175759879,0.0328,107200.0,107190.0,0.32448]
[1748175760809,0.0328,107200.0,107180.0,0.33612]
[1748175760957,0.0328,107190.0,107180.0,0.33512]
[1748175761163,0.0328,107190.0,107180.0,0.6596]
[1748175762010,0.0328,107190.0,107180.0,0.33612]
[1748175762224,0.0328,107190.0,107180.0,0.6616]
[1748175762722,0.0328,107190.0,107180.0,0.6626]
[1748175764167,0.0328,107190.0,107180.0,1.0026]
[1748175766782,0.032594,107190.0,107180.0,1.0026]
[1748175769135,0.0164,107190.0,107180.0,1.0026]
[1748175774227,0.0326,107190.0,107180.0,1.0026]
[1748175774981,0.0326,107190.0,107180.0,0.67812]
[1748175775200,0.0326,107190.0,107180.0,1.0026]
[1748175775613,0.0164,107190.0,107180.0,2.651827]
[1748175775820,0.0164,107190.0,107180.0,2.008438]
[1748175776022,0.0164,107190.0,107180.0,1.862464]
[1748175776661,0.0164,107190.0,107180.0,1.782629]
[1748175776879,0.0164,107190.0,107180.0,1.756421]
[1748175778702,0.0164,107190.0,107180.0,1.421301]
[1748175780296,0.0163,107200.0,107180.0,1.436801]
[1748175780457,0.0163,107200.0,107180.0,0.68298]
[1748175780870,0.0163,107200.0,107190.0,0.00233193]
[1748175781715,0.0163,107200.0,107180.0,0.68298]
[1748175782142,0.0163,107200.0,107180.0,0.68098]
[1748175782377,0.0163,107200.0,107180.0,0.68198]
[1748175782913,0.0163,107200.0,107180.0,0.68098]
[1748175783327,0.05759489,107210.0,107190.0,1.219801]
[1748175783521,0.05759489,107210.0,107200.0,0.1512918]
[1748175783978,0.04229489,107210.0,107200.0,0.1512918]
[1748175784189,0.04229489,107210.0,107200.0,0.614275]
[1748175784469,0.0163,107210.0,107200.0,0.614275]
[1748175784623,0.0163,107210.0,107200.0,0.14896]
[1748175784823,0.0345,107210.0,107200.0,0.14896]
[1748175785262,0.0355,107210.0,107200.0,0.14896]
[1748175785468,0.0163,107200.0,107180.0,0.10504556]
[1748175785645,0.01415456,107220.0,107190.0,0.55326856]
[1748175785848,0.01430514,107220.0,107190.0,0.32416]
[1748175786180,0.01430514,107220.0,107200.0,0.34]
[1748175786759,0.00015058,107220.0,107200.0,0.34]
[1748175788188,0.00215058,107220.0,107200.0,0.34]
[1748175788769,0.0163,107210.0,107200.0,0.34]
[1748175788947,0.0325,107210.0,107200.0,0.34]
[1748175789180,0.12204556,107210.0,107200.0,0.34]
[1748175789388,0.12204556,107210.0,107190.0,0.7559]
[1748175789389,0.0325,107200.0,107190.0,0.7559]
[1748175789551,0.0325,107200.0,107190.0,1.08006]
[1748175790591,0.0325,107200.0,107190.0,1.08106]
[1748175792032,0.0325,107200.0,107190.0,0.66516]
[1748175792478,0.0325,107200.0,107190.0,0.5162]
[1748175792680,0.0325,107200.0,107190.0,0.66516]
[1748175795387,0.12204556,107200.0,107190.0,0.5162]
[1748175795592,0.12204556,107200.0,107190.0,0.1762]
[1748175795795,0.13578524,107200.0,107190.0,0.32516]
[1748175797016,0.13578524,107200.0,107190.0,0.001]
[1748175797224,0.11958524,107200.0,107190.0,0.001]
[1748175797366,0.11958524,107200.0,107190.0,0.32516]
[1748175797589,0.01373968,107200.0,107190.0,0.32516]
[1748175797793,0.0155,107210.0,107190.0,0.34096]
[1748175797996,0.0155,107210.0,107200.0,0.00233183]
[1748175798243,0.03105058,107220.0,107200.0,0.00233183]
[1748175798446,0.12059614,107220.0,107210.0,0.14896]
[1748175799982,0.12559614,107220.0,107210.0,0.14896]
[1748175800189,0.1570986,107220.0,107210.0,0.14896]
[1748175804774,0.1555986,107220.0,107210.0,0.14896]
[1748175805203,0.1555986,107220.0,107210.0,0.32412]
[1748175805896,0.15565061,107220.0,107210.0,0.32412]
[1748175806453,0.14160003,107220.0,107210.0,0.32412]
[1748175807000,5.201e-05,107210.0,107200.0,0.0152]
[1748175807299,5.201e-05,107210.0,107200.0,0.19036]
[1748175808051,0.13954802,107220.0,107210.0,0.34]
[1748175808251,0.13654802,107220.0,107210.0,0.34]
[1748175809269,0.13854802,107220.0,107200.0,0.33922799]
[1748175809558,0.14154802,107220.0,107200.0,0.33922799]
[1748175810452,0.12634556,107220.0,107200.0,0.33922799]
[1748175810674,0.12634556,107220.0,107200.0,0.35454674]
[1748175811020,0.12334556,107220.0,107200.0,0.35454674]
[1748175811319,0.12434556,107220.0,107200.0,0.35454674]
[1748175811523,0.12234556,107220.0,107200.0,0.35454674]
[1748175811863,0.12334556,107220.0,107200.0,0.35454674]
[1748175812534,0.12334556,107220.0,107200.0,0.33939875]
[1748175812796,0.0157,107210.0,107200.0,0.33939875]
[1748175813235,0.12354556,107220.0,107200.0,0.33939875]
[1748175813640,0.10724556,107220.0,107200.0,0.37219875]
[1748175814165,0.09154556,107220.0,107210.0,0.0164]
[1748175814370,0.09154556,107220.0,107200.0,0.37219875]
[1748175814576,0.09154556,107220.0,107200.0,0.22327875]
[1748175814577,0.10724556,107220.0,107200.0,0.22327875]
[1748175814776,0.10724556,107220.0,107210.0,0.14892]
[1748175814976,0.10524556,107220.0,107210.0,0.14892]
[1748175815412,0.10824556,107220.0,107210.0,0.14892]
[1748175815601,0.12454556,107220.0,107210.0,0.3238]
[1748175815843,0.10824556,107220.0,107210.0,0.3238]
[1748175816046,0.11024556,107220.0,107210.0,0.3238]
[1748175816872,0.12654556,107220.0,107210.0,0.3238]
[1748175818400,0.12654556,107220.0,107210.0,0.17488]
[1748175818620,0.12654556,107220.0,107210.0,0.3238]
[1748175819076,0.12659947,107220.0,107210.0,0.3238]
[1748175820020,5.391e-05,107210.0,107200.0,0.03171875]
[1748175820404,5.391e-05,107210.0,107200.0,0.20659875]
[1748175821183,0.001,107210.0,107200.0,0.20654484]
[1748175821387,0.001,107210.0,107200.0,1.90270684]
[1748175821592,0.001,107210.0,107200.0,3.04844984]
[1748175821771,0.001,107210.0,107200.0,3.5534084]
[1748175821969,0.002,107210.0,107200.0,3.8934084]
[1748175822869,0.001,107210.0,107200.0,3.90761852]
[1748175823826,0.02996039,107240.0,107220.0,0.0152]
[1748175824028,0.11955623,107240.0,107230.0,0.32376]
[1748175824672,0.13565623,107240.0,107230.0,0.32376]
[1748175824873,0.12079584,107240.0,107230.0,0.32376]
[1748175825395,0.12279584,107240.0,107230.0,0.32376]
[1748175825827,0.10969584,107240.0,107230.0,0.32376]
[1748175826888,0.02015028,107240.0,107230.0,0.32376]
[1748175829104,0.02015028,107240.0,107230.0,0.66376]
[1748175829842,0.02015028,107240.0,107230.0,0.51484]
[1748175830045,0.12529584,107240.0,107230.0,0.34]
[1748175830260,0.12529584,107240.0,107230.0,0.66376]
[1748175830804,0.12535157,107240.0,107230.0,0.66376]
[1748175831946,0.12529584,107240.0,107230.0,0.66370427]
[1748175832120,0.12529584,107240.0,107230.0,0.33994427]
[1748175832324,0.12529584,107240.0,107230.0,0.66370427]
[1748175833157,0.12529584,107240.0,107230.0,0.51478427]
[1748175833328,0.12529584,107240.0,107230.0,0.66370427]
[1748175834299,0.12529584,107240.0,107200.0,0.13702052]
[1748175834300,0.016,107220.0,107200.0,0.03256484]
[1748175834510,0.09459584,107240.0,107220.0,0.17484]
[1748175834658,0.08954556,107230.0,107210.0,0.0153]
[1748175834868,0.12114556,107230.0,107220.0,0.17484]
[1748175835069,0.13600595,107230.0,107220.0,0.17484]
[1748175837082,0.13700595,107230.0,107220.0,0.17484]
[1748175837855,0.13700595,107230.0,107220.0,0.32376]
[1748175838240,0.12200595,107230.0,107200.0,0.37056484]
[1748175838363,0.0322,107220.0,107210.0,0.66376]
[1748175838567,0.12174556,107220.0,107210.0,0.66376]
[1748175841349,0.12174556,107220.0,107210.0,0.51484]
[1748175841507,0.12174556,107220.0,107210.0,0.66376]
[1748175841721,0.12374556,107220.0,107210.0,0.66376]
[1748175841914,0.10744556,107220.0,107210.0,0.66376]
[1748175842723,0.10744556,107220.0,107210.0,0.51484]
[1748175842947,0.12404556,107220.0,107210.0,0.66376]
[1748175843350,0.12404556,107220.0,107210.0,0.34]
[1748175843555,0.12354556,107220.0,107210.0,0.17448]
[1748175844712,0.12180595,107220.0,107210.0,0.17448]
[1748175845135,0.13840595,107220.0,107210.0,0.17448]
[1748175846189,0.13468439,107220.0,107210.0,0.17448]
[1748175847820,0.11808439,107220.0,107210.0,0.17448]
[1748175848064,0.11808439,107220.0,107210.0,0.19098]
[1748175848065,0.10268439,107220.0,107210.0,0.19098]
[1748175849283,0.10268439,107220.0,107210.0,0.53098]
[1748175849895,0.01313883,107220.0,107210.0,0.53098]
[1748175850699,0.002,107220.0,107210.0,0.53098]
[1748175856113,0.002,107220.0,107210.0,0.6799]
[1748175857533,0.002,107220.0,107210.0,0.6634]
[1748175857742,0.0178,107220.0,107210.0,0.6634]
[1748175858083,0.10734556,107220.0,107210.0,0.51448]
[1748175858269,0.10734556,107220.0,107210.0,0.6634]
[1748175859278,0.09154556,107220.0,107210.0,0.6789]
[1748175859716,0.002,107220.0,107210.0,0.6946]
[1748175860869,0.002,107220.0,107210.0,1.465224]
[1748175861070,0.002,107220.0,107210.0,1.468748]
[1748175861731,0.002,107220.0,107210.0,0.6789]
[1748175862927,0.002,107220.0,107210.0,0.944464]
[1748175864082,0.002,107220.0,107210.0,0.6789]
[1748175864244,0.002,107220.0,107210.0,0.944464]
[1748175864845,0.002,107220.0,107210.0,0.6789]
[1748175865026,0.002,107220.0,107210.0,0.944464]
[1748175865737,0.002,107220.0,107210.0,0.959564]
[1748175871312,0.002,107220.0,107210.0,1.04910956]
[1748175871934,0.002,107220.0,107210.0,1.07510956]
[1748175872310,0.001,107220.0,107210.0,1.07510956]
[1748175872516,0.001,107220.0,107210.0,1.07710956]
[1748175873129,0.001,107220.0,107210.0,1.07510956]
[1748175873359,0.001,107220.0,107210.0,1.07810956]
[1748175873704,5.028e-05,107240.0,107220.0,0.0159]
[1748175873993,5.028e-05,107240.0,107230.0,0.379712]
[1748175874212,5.028e-05,107240.0,107230.0,0.184952]
[1748175874662,5.028e-05,107240.0,107230.0,0.144452]
[1748175874886,0.0164,107230.0,107210.0,0.0346]
[1748175875113,0.0306,107230.0,107220.0,0.323]
[1748175875316,0.0142,107230.0,107220.0,0.323]
[1748175875521,0.0142,107230.0,107210.0,0.003]
[1748175875735,0.10374556,107230.0,107220.0,0.17412]
[1748175875934,0.10374556,107230.0,107220.0,0.323]
[1748175876330,0.10374556,107230.0,107220.0,0.663]
[1748175876450,0.12014556,107230.0,107220.0,0.48888]
[1748175876656,0.08954556,107230.0,107220.0,0.323]
[1748175876857,0.08954556,107230.0,107200.0,0.33504]
[1748175877083,0.08954556,107220.0,107210.0,0.323]
[1748175877288,0.10494556,107220.0,107210.0,0.663]
[1748175878179,0.12014556,107220.0,107210.0,0.34]
[1748175878407,0.12014556,107220.0,107210.0,0.66304]
[1748175879454,0.10494556,107220.0,107210.0,0.66404]
[1748175879656,0.02753883,107230.0,107210.0,0.493887]
[1748175879797,0.11708439,107230.0,107210.0,0.34074]
[1748175879991,0.11708439,107230.0,107210.0,0.35664]
[1748175880364,0.10068439,107230.0,107210.0,0.35664]
[1748175880775,0.10068439,107230.0,107210.0,0.35564]
[1748175880947,0.01113883,107230.0,107220.0,0.00233146]
[1748175881091,0.02758911,107240.0,107220.0,0.01803146]
[1748175881289,0.001,107230.0,107220.0,0.01803146]
[1748175881490,0.001,107230.0,107220.0,0.0157]
[1748175881692,0.0174,107230.0,107210.0,0.33894]
[1748175881887,0.0174,107230.0,107210.0,0.0157]
[1748175882142,0.0174,107230.0,107220.0,0.32304]
[1748175882315,0.12214556,107230.0,107220.0,0.32304]
[1748175882858,0.12114556,107230.0,107200.0,0.36664]
[1748175883066,0.12114556,107230.0,107220.0,0.32304]
[1748175883435,0.12214556,107230.0,107220.0,0.32304]
[1748175883654,0.12414556,107230.0,107220.0,0.32304]
[1748175883858,0.12214556,107230.0,107220.0,0.33682565]
[1748175884052,0.0316,107220.0,107210.0,0.34]
[1748175884270,0.12114556,107220.0,107210.0,0.32304]
[1748175884460,0.12114556,107220.0,107210.0,0.66304]
[1748175885829,0.12114556,107220.0,107210.0,0.34]
[1748175886020,0.13488524,107220.0,107210.0,0.66304]
[1748175886592,0.14602407,107220.0,107210.0,0.66304]
[1748175888100,0.14570811,107220.0,107210.0,0.66304]
[1748175889633,0.11442407,107220.0,107210.0,0.66308]
[1748175889824,0.11442407,107220.0,107210.0,0.67908]
[1748175890199,0.10328524,107220.0,107210.0,0.67908]
[1748175892309,0.10328524,107220.0,107210.0,0.66308]
[1748175892515,0.11928524,107220.0,107210.0,0.66308]
[1748175892839,0.10328524,107220.0,107210.0,0.66308]
[1748175892991,0.08954556,107220.0,107210.0,0.67868]
[1748175894214,0.08954556,107220.0,107210.0,0.66308]
[1748175895493,0.08954556,107220.0,107210.0,0.67868]
[1748175895692,0.01113883,107230.0,107220.0,0.0156]
[1748175897075,0.002,107230.0,107220.0,0.0156]
[1748175897277,0.002,107230.0,107220.0,0.3556]
[1748175898820,0.003,107230.0,107220.0,0.3556]
[1748175900588,0.003,107230.0,107220.0,0.3719]
[1748175901014,0.003,107230.0,107220.0,0.963085]
[1748175901203,0.003,107230.0,107220.0,0.946785]
[1748175902158,0.003,107230.0,107220.0,0.567441]
[1748175902376,0.003,107230.0,107220.0,0.3556]
[1748175902998,0.003,107230.0,107220.0,0.34]
[1748175903179,0.0182,107230.0,107220.0,0.34]
[1748175903589,0.0182,107230.0,107220.0,0.745579]
[1748175903590,0.003,107230.0,107220.0,0.745579]
[1748175903800,0.003,107230.0,107220.0,0.702594]
[1748175904183,0.003,107230.0,107220.0,0.3563]
[1748175904587,0.003,107230.0,107220.0,0.655359]
[1748175904777,0.003,107230.0,107220.0,0.45926]
[1748175905184,0.0188,107230.0,107220.0,0.48892]
[1748175905385,0.0188,107230.0,107220.0,0.32272]
[1748175908007,0.0188,107230.0,107200.0,0.3641628]
[1748175908008,0.09254556,107230.0,107200.0,0.3641628]
[1748175908212,0.09254556,107230.0,107220.0,0.1738]
[1748175908420,0.10754556,107230.0,107220.0,0.5138]
[1748175908883,0.12134556,107230.0,107220.0,0.34]
[1748175909086,0.12034556,107230.0,107220.0,0.66268]
[1748175909609,0.10454556,107230.0,107220.0,0.32268]
[1748175909811,0.10654556,107230.0,107210.0,0.34]
[1748175910052,0.12034556,107220.0,107210.0,0.34]
[1748175910264,0.12034556,107220.0,107210.0,0.66268]
[1748175910485,0.10534556,107220.0,107210.0,0.66268]
[1748175910894,0.08954556,107220.0,107210.0,0.67788]
[1748175911113,0.02993883,107230.0,107210.0,0.67788]
[1748175911333,0.01413883,107230.0,107220.0,0.01753155]
[1748175911540,0.01313883,107230.0,107220.0,0.0152]
[1748175911747,0.01313883,107230.0,107220.0,0.32272]
[1748175911748,0.12154556,107230.0,107220.0,0.32272]
[1748175912507,0.12254556,107230.0,107220.0,0.32272]
[1748175912703,0.12454556,107230.0,107220.0,0.32272]
[1748175913715,0.12454556,107230.0,107220.0,0.32268]
[1748175914386,0.10834556,107230.0,107220.0,0.32268]
[1748175915144,0.003,107230.0,107220.0,0.33788]
[1748175919201,0.003,107230.0,107220.0,0.35408]
[1748175921255,0.003,107230.0,107220.0,0.33788]
[1748175922270,0.003,107230.0,107220.0,0.35388]
[1748175922684,0.003,107230.0,107220.0,0.69388]
[1748175923222,0.003,107230.0,107220.0,1.355881]
[1748175924003,0.003,107230.0,107220.0,1.339881]
[1748175925202,0.003,107230.0,107220.0,1.084333]
[1748175925325,0.003,107230.0,107220.0,0.843507]
[1748175925526,0.003,107230.0,107220.0,0.832425]
[1748175925904,0.003,107230.0,107220.0,0.807425]
[1748175927695,0.0186,107230.0,107220.0,0.807425]
[1748175930652,0.0186,107230.0,107220.0,0.792225]
[1748175933710,0.003,107230.0,107220.0,0.808725]
[1748175933906,0.003,107230.0,107220.0,0.486045]
[1748175934117,0.003,107230.0,107220.0,0.808685]
[1748175934420,0.003,107230.0,107220.0,0.792185]
[1748175934625,0.0191,107230.0,107220.0,0.66264]
[1748175935765,0.003,107230.0,107220.0,1.157149]
[1748175936187,0.003,107230.0,107220.0,1.048829]
[1748175936390,0.003,107230.0,107220.0,1.037502]
[1748175938246,0.003,107230.0,107220.0,1.08595879]
[1748175938453,0.003,107230.0,107220.0,1.06161717]
[1748175940161,0.003,107230.0,107220.0,1.037502]
[1748175944293,0.003,107230.0,107220.0,0.698462]
[1748175944550,0.035,107230.0,107220.0,0.516382]
[1748175944801,0.12454556,107230.0,107200.0,0.39186685]
[1748175945048,0.12454556,107230.0,107220.0,0.17332]
[1748175945308,0.12454556,107230.0,107220.0,0.275172]
[1748175945761,0.12354556,107230.0,107220.0,0.275172]
[1748175946091,0.12354556,107230.0,107220.0,0.17332]
[1748175946504,0.12254556,107230.0,107220.0,0.3222]
[1748175946974,0.12354556,107230.0,107220.0,0.3222]
[1748175947924,0.12354556,107230.0,107220.0,0.6622]
[1748175949187,0.12354556,107230.0,107220.0,0.34]
[1748175949425,0.0308,107210.0,107200.0,0.33504]
[1748175949640,0.0308,107210.0,107200.0,0.65724]
[1748175949641,0.12034556,107210.0,107200.0,0.65724]
[1748175949826,0.12034556,107210.0,107200.0,1.26954]
[1748175950218,0.12034556,107210.0,107200.0,0.92954]
[1748175950368,0.12034556,107210.0,107200.0,0.65724]
[1748175950582,0.12034556,107210.0,107200.0,0.99824]
[1748175951731,0.12034556,107210.0,107200.0,0.99924]
[1748175953064,0.12034556,107210.0,107200.0,1.332421]
[1748175954646,0.12034556,107210.0,107200.0,0.85036]
[1748175954856,0.12034556,107210.0,107200.0,0.99924]
[1748175956492,0.12034556,107210.0,107200.0,1.330504]
[1748175956958,0.10474556,107210.0,107200.0,1.330504]
[1748175960537,0.10474556,107210.0,107200.0,1.330584]
[1748175961898,0.10474556,107210.0,107200.0,1.280716]
[1748175964989,0.02933968,107220.0,107200.0,0.940716]
[1748175965218,0.11888524,107220.0,107200.0,0.67442]
[1748175965705,0.11888524,107220.0,107210.0,0.3423317]
[1748175965922,0.11888524,107220.0,107210.0,0.34]
[1748175967692,0.11888524,107220.0,107200.0,0.67342]
[1748175967918,0.11888524,107220.0,107200.0,0.68982]
[1748175968533,0.11888524,107220.0,107210.0,0.00233161]
[1748175970092,0.10514556,107220.0,107210.0,0.56856161]
[1748175970304,0.0153,107230.0,107210.0,0.517608]
[1748175970547,0.10484556,107230.0,107220.0,0.14892]
[1748175972432,0.10684556,107230.0,107220.0,0.14892]
[1748175972856,0.10784556,107230.0,107220.0,0.14892]
[1748175977140,0.11898439,107230.0,107220.0,0.14892]
[1748175979713,0.11898439,107230.0,107220.0,0.48892]
[1748175980597,0.10784556,107230.0,107220.0,0.48892]
[1748175981620,0.12424556,107230.0,107220.0,0.48892]
[1748175981843,0.12424556,107230.0,107220.0,0.66176]
[1748175982301,0.10784556,107230.0,107220.0,0.66176]
[1748175983657,0.10784556,107230.0,107220.0,0.51284]
[1748175983828,0.10784556,107230.0,107220.0,0.66176]
[1748175989136,0.13538439,107230.0,107220.0,0.66176]
[1748175990430,0.11898439,107230.0,107220.0,0.66176]
[1748175990877,0.01413883,107230.0,107220.0,0.67686]
[1748175991603,0.003,107230.0,107220.0,0.67686]
[1748175992854,0.10764556,107230.0,107220.0,0.34]
[1748175993054,0.0151,107210.0,107200.0,0.33504]
[1748175993218,0.10464556,107210.0,107200.0,0.33504]
[1748175993547,0.11964556,107210.0,107200.0,0.6568]
[1748175993957,0.01113883,107220.0,107210.0,0.3551]
[1748175994156,0.01113883,107220.0,107210.0,1.484124]
[1748175994349,0.01113883,107220.0,107210.0,1.201549]
[1748175994695,0.01113883,107220.0,107210.0,1.157748]
[1748175995098,0.01113883,107220.0,107210.0,1.13461]
[1748175995312,0.02763883,107230.0,107210.0,1.13461]
[1748175995461,0.1500319,107230.0,107210.0,0.51902]
[1748175996847,0.06048634,107230.0,107210.0,0.51902]
[1748175997058,0.06048634,107230.0,107220.0,0.00233145]
[1748175997429,0.01113883,107230.0,107220.0,0.01743145]
[1748175997807,0.02763883,107230.0,107220.0,0.00233145]
[1748175998214,0.11718439,107230.0,107220.0,0.3212]
[1748175998611,0.12018439,107230.0,107220.0,0.3212]
[1748175999850,0.12018439,107230.0,107200.0,0.36624]
[1748175999851,0.0165,107220.0,107200.0,0.36624]
[1748176000062,0.10604556,107210.0,107200.0,0.33504]
[1748176000237,0.12104556,107210.0,107200.0,0.65624]
[1748176001023,0.12104556,107210.0,107200.0,0.65724]
[1748176001344,0.12104556,107210.0,107200.0,0.33604]
[1748176001645,0.12104556,107210.0,107200.0,0.99624]
[1748176002064,0.12104556,107210.0,107200.0,0.99724]
[1748176002279,0.12104556,107210.0,107200.0,0.99824]
[1748176002798,0.10604556,107210.0,107200.0,0.99824]
[1748176002998,0.0558389,107220.0,107200.0,1.555835]
[1748176003148,0.14538446,107220.0,107200.0,1.01454]
[1748176003553,0.16038446,107220.0,107200.0,1.01454]
[1748176003792,0.16038446,107220.0,107200.0,1.01354]
[1748176004316,0.14552407,107220.0,107210.0,0.3212]
[1748176007488,0.11442407,107220.0,107210.0,0.3212]
[1748176007698,0.02487851,107220.0,107210.0,0.681795]
[1748176008540,0.01113883,107220.0,107210.0,1.037895]
[1748176008753,0.04398634,107230.0,107220.0,0.34]
[1748176008955,0.1335319,107230.0,107220.0,0.34]
[1748176009135,0.11678439,107230.0,107220.0,0.34]
[1748176010001,0.10764556,107230.0,107220.0,0.34]
[1748176010594,0.10864556,107230.0,107220.0,0.34]
[1748176012504,0.09254556,107230.0,107220.0,0.3553]
[1748176014411,0.10864556,107230.0,107220.0,0.34]
[1748176016872,0.10864556,107230.0,107220.0,0.48892]
[1748176017077,0.12474556,107230.0,107220.0,0.48892]
[1748176017671,0.10864556,107230.0,107220.0,0.48892]
[1748176018716,0.12474556,107230.0,107220.0,0.34]
[1748176018933,0.12474556,107230.0,107220.0,0.6612]
[1748176020653,0.13588439,107230.0,107220.0,0.6612]
[1748176021856,0.12474556,107230.0,107220.0,0.6612]
[1748176022063,0.10864556,107230.0,107220.0,0.6612]
[1748176025039,0.10864556,107230.0,107220.0,0.34]
[1748176025240,0.10864556,107230.0,107220.0,0.6612]
[1748176025832,0.12404556,107230.0,107220.0,0.6612]
[1748176027096,0.13518439,107230.0,107220.0,0.6612]
[1748176027778,0.11978439,107230.0,107220.0,0.6612]
[1748176030612,0.10864556,107230.0,107220.0,0.6612]
[1748176033275,0.11978439,107230.0,107220.0,0.6612]
[1748176039535,0.11978439,107230.0,107220.0,0.34]
[1748176039760,0.11978439,107230.0,107220.0,0.66072]
[1748176040475,0.13538439,107230.0,107220.0,0.1718]
[1748176040591,0.13538439,107230.0,107220.0,0.32072]
[1748176041362,0.016,107220.0,107200.0,0.35044]
[1748176041587,0.10554556,107220.0,107210.0,0.32072]
[1748176042776,0.11670956,107220.0,107210.0,0.32072]
[1748176043512,0.011164,107220.0,107210.0,0.467965]
[1748176044126,0.011164,107220.0,107210.0,0.807965]
[1748176044714,0.04202439,107230.0,107210.0,0.807965]
[1748176044961,0.13156995,107230.0,107210.0,0.67612]
[1748176045137,0.16441746,107230.0,107210.0,0.67612]
[1748176045585,0.16441746,107230.0,107220.0,0.34]
[1748176045789,0.14841746,107230.0,107220.0,0.3556]
[1748176046396,0.14841746,107230.0,107220.0,0.3708]
[1748176046577,0.13355707,107230.0,107220.0,0.3708]
[1748176047401,0.13455707,107230.0,107220.0,0.3708]
[1748176047591,0.13555707,107230.0,107220.0,0.3708]
[1748176047745,0.10270956,107230.0,107220.0,0.3708]
[1748176047945,0.013164,107230.0,107220.0,0.3556]
[1748176049031,0.002,107230.0,107220.0,0.3556]
[1748176049939,0.002,107230.0,107220.0,0.5274]
[1748176050119,0.002,107230.0,107220.0,1.138893]
[1748176064780,0.002,107230.0,107220.0,1.123293]
[1748176065099,0.002,107230.0,107220.0,1.138673]
[1748176065306,0.002,107230.0,107220.0,1.271653]
[1748176067411,0.002,107230.0,107220.0,0.543267]
[1748176067644,0.0182,107230.0,107220.0,0.852364]
[1748176068094,0.0182,107230.0,107220.0,0.834974]
[1748176068326,0.0182,107230.0,107220.0,0.514814]
[1748176068544,0.12284556,107230.0,107210.0,0.0166]
[1748176068754,0.0162,107220.0,107200.0,0.77936847]
[1748176068958,0.0162,107220.0,107210.0,0.32016]
[1748176069165,0.0162,107220.0,107210.0,0.66016]
[1748176069572,0.0162,107220.0,107210.0,0.34]
[1748176069709,0.0162,107220.0,107210.0,0.66016]
[1748176070140,0.0162,107220.0,107210.0,0.32016]
[1748176070341,0.0162,107220.0,107210.0,0.66016]
[1748176070549,0.0313,107220.0,107210.0,0.66016]
[1748176070846,0.0162,107220.0,107210.0,0.66016]
[1748176071336,0.0162,107220.0,107210.0,0.926393]
[1748176071816,0.11580956,107230.0,107220.0,0.34]
[1748176072028,0.10574556,107230.0,107220.0,0.689209]
[1748176072236,0.10574556,107230.0,107220.0,0.63352]
[1748176073688,0.06026179,107240.0,107220.0,0.66602]
[1748176073909,0.001,107230.0,107220.0,0.0159]
[1748176074106,0.001,107230.0,107220.0,2.344483]
[1748176074319,0.001,107230.0,107220.0,2.361083]
[1748176074728,0.001,107230.0,107220.0,2.213803]
[1748176075269,0.001,107230.0,107220.0,2.055016]
[1748176075455,0.001,107230.0,107220.0,2.039016]
[1748176076499,0.001,107230.0,107220.0,2.379016]
[1748176077128,0.002,107230.0,107220.0,2.379016]
[1748176082358,0.002,107230.0,107220.0,2.89865087]
[1748176083196,0.002,107230.0,107220.0,2.95463026]
[1748176083400,0.001,107230.0,107220.0,2.95463026]
[1748176083612,0.001,107230.0,107220.0,2.93360809]
[1748176083814,5.028e-05,107240.0,107230.0,0.34]
[1748176084026,5.028e-05,107240.0,107230.0,5.51034556]
[1748176085751,5.028e-05,107240.0,107230.0,5.51334556]
[1748176085995,5.028e-05,107240.0,107230.0,5.51534556]
[1748176086701,5.028e-05,107240.0,107230.0,5.93124556]
[1748176087390,5.028e-05,107240.0,107230.0,5.95917156]
[1748176087584,5.028e-05,107240.0,107230.0,5.97371241]
[1748176088076,0.0152,107280.0,107260.0,0.032]
[1748176088298,0.0157029,107280.0,107270.0,2.14647715]
[1748176088512,0.0157029,107280.0,107270.0,2.081481]
[1748176088735,0.0157029,107280.0,107270.0,2.047806]
[1748176088923,0.0157029,107280.0,107270.0,1.472209]
[1748176089148,0.0157029,107280.0,107270.0,1.294449]
[1748176089567,0.0197029,107280.0,107270.0,1.294449]
[1748176089791,0.0197029,107280.0,107270.0,0.801606]
[1748176090014,0.0347029,107280.0,107270.0,0.65504]
[1748176090293,0.12424846,107280.0,107270.0,0.65504]
[1748176090499,0.12424846,107280.0,107270.0,0.67492]
[1748176090726,0.12424846,107280.0,107270.0,0.99456]
[1748176090947,0.12524846,107280.0,107270.0,0.99456]
[1748176091183,0.12524846,107280.0,107270.0,0.33492]
[1748176091398,0.12424846,107280.0,107270.0,0.65456]
[1748176091633,0.14178931,107280.0,107270.0,0.33492]
[1748176091839,0.14178931,107280.0,107270.0,0.65456]
[1748176092044,0.14178931,107280.0,107270.0,0.50572]
[1748176092248,0.15046328,107280.0,107270.0,0.50572]
[1748176092893,0.15295331,107280.0,107270.0,0.50572]
[1748176093089,0.15295331,107280.0,107270.0,0.33492]
[1748176093278,0.15295331,107280.0,107270.0,0.50572]
[1748176093774,0.15295331,107280.0,107270.0,0.65456]
[1748176094177,0.13841246,107280.0,107270.0,0.33492]
[1748176094385,0.13841246,107280.0,107270.0,0.65456]
[1748176095107,0.14708665,107280.0,107270.0,0.65456]
[1748176096331,0.13592265,107280.0,107270.0,0.65456]
[1748176099117,0.13592265,107280.0,107270.0,0.33492]
[1748176099332,0.13592265,107280.0,107270.0,0.65456]
[1748176099760,0.13592265,107280.0,107270.0,0.33492]
[1748176099967,0.1504635,107280.0,107270.0,0.33492]
[1748176100171,0.1504635,107280.0,107270.0,0.50572]
[1748176100376,0.1616275,107280.0,107270.0,0.65456]
[1748176100827,0.15295331,107280.0,107270.0,0.65456]
[1748176101528,0.1678137,107280.0,107270.0,0.65456]
[1748176101724,0.1678137,107280.0,107270.0,0.33492]
[1748176101926,0.1678137,107280.0,107270.0,0.50572]
[1748176103776,0.1566497,107280.0,107270.0,0.50572]